fUSD/lending_fUSD_20250502
["ID","MTS","AMOUNT","RATE_DAILY","PERIOD"]
[359628822,1746195046413,-351.92,0.000199,2]
[359628824,1746195046423,-1602.52,0.000199,2]
[359628826,1746195046432,-351.92,0.000199,2]
[359628828,1746195046441,-162.16,0.000199,2]
[359628830,1746195046450,-351.92,0.000199,2]
[359628832,1746195046459,-455.93,0.000199,2]
[359628834,1746195046468,-150.0,0.000199,2]
[359628836,1746195046477,-1499.44,0.000199,2]
[359628838,1746195046486,-150.0,0.000199,2]
[359628840,1746195046495,-150.0,0.000199,2]
[359628842,1746195046505,-916.88,0.000199,2]
[359628843,1746195046514,-1000.0,0.000199,2]
[359628845,1746195046524,-150.0,0.000199,2]
[359628848,1746195046533,-150.75,0.000199,2]
[359628851,1746195046542,-451.39,0.000199,2]
[359628854,1746195046551,-162.16,0.000199,2]
[359628857,1746195046560,-360.91,0.000199,2]
[359628860,1746195046569,-150.0,0.000199,2]
[359628863,1746195046578,-183.35052335,0.000199,2]
[359628866,1746195046588,-451.39,0.000199,2]
[359628870,1746195046597,-351.92,0.000199,2]
[359628873,1746195046606,-150.0,0.000199,2]
[359628876,1746195046615,-177.05047637,0.000199,2]
[359628879,1746195046624,-189.39229872,0.000199,3]
[359628882,1746195046636,-3028.92322874,0.000199,2]
[359628885,1746195046645,-297.05834318,0.000199,2]
[359628888,1746195046654,-150.0,0.000199,2]
[359628891,1746195046664,-4991.8226487,0.000199,2]
[359628894,1746195046674,-451.39,0.000199,2]
[359628897,1746195046683,-150.0,0.000199,2]
[359628900,1746195046693,-797.0,0.00019912,2]
[359628903,1746195046702,-866.118,0.00019912,2]
[359628906,1746195046711,-6753.0,0.00019912,2]
[359628909,1746195046721,-4006.0,0.00019912,2]
[359628912,1746195046730,-878.0,0.00019912,2]
[359628915,1746195046744,-153.0,0.00019912,2]
[359628918,1746195046753,-151.0,0.00019943,2]
[359628921,1746195046763,-207.4,0.00019953,2]
[359628923,1746195046772,-151.0,0.00019954,2]
[359628925,1746195046781,-151.0,0.00019954,2]
[359628927,1746195046790,-668.65185757,0.00019954,2]
[359628929,1746195046800,-500.0,0.00019973,2]
[359628932,1746195046809,-500.0,0.00019973,2]
[359628935,1746195046821,-500.0,0.00019973,2]
[359628938,1746195046831,-500.0,0.00019973,2]
[359628940,1746195046841,-500.0,0.00019973,2]
[359628942,1746195046850,-500.0,0.00019973,2]
[359628944,1746195046860,-500.0,0.00019973,2]
[359628945,1746195046869,-500.0,0.00019973,2]
[359628947,1746195046879,-505.99606481,0.00019973,2]
[359628949,1746195046889,-500.0,0.00019973,2]
[359628952,1746195046898,-500.8896261,0.00019973,2]
[359628954,1746195046908,-500.68110356,0.00019973,2]
[359628956,1746195046918,-500.0,0.00019973,2]
[359628958,1746195046928,-187.65011133,0.00019973,2]
[359628961,1746195046937,-502.14334775,0.00019973,2]
[359628963,1746195046947,-505.11388319,0.00019973,2]
[359628965,1746195046956,-500.0,0.00019973,2]
[359628968,1746195046965,-13095.1104186,0.00019986,2]
[359628970,1746195046974,-217.11897616,0.0001999,2]
[359628972,1746195046983,-217.11897616,0.0001999,2]
[359628974,1746195046992,-1113.24,0.00019998,2]
[359628976,1746195047001,-500.0,0.00019999,2]
[359628978,1746195047010,-666.0,0.00019999,2]
[359628980,1746195047019,-300.0,0.00019999,2]
[359628982,1746195047028,-500.0,0.00019999,2]
[359628984,1746195047037,-334.77930665,0.00019999,2]
[359628986,1746195047046,-300.0,0.00019999,2]
[359628988,1746195047056,-300.0,0.00019999,2]
[359628990,1746195047065,-991.8265,0.00019999,2]
[359628992,1746195047075,-500.0,0.00019999,2]
[359628994,1746195047085,-500.0,0.00019999,2]
[359628996,1746195047094,-500.0,0.00019999,2]
[359628998,1746195047104,-500.0,0.00019999,2]
[359629000,1746195047114,-500.0,0.00019999,2]
[359629002,1746195047123,-500.0,0.00019999,2]
[359629004,1746195047132,-500.0,0.00019999,2]
[359629006,1746195047142,-480.10416411,0.00019999,2]
[359629008,1746195047151,-1113.24,0.00019999,2]
[359629009,1746195047161,-1113.24,0.00019999,2]
[359629010,1746195047170,-1113.24,0.00019999,2]
[359629011,1746195047180,-1113.24,0.00019999,2]
[359629012,1746195047190,-1113.24,0.00019999,2]
[359629013,1746195047199,-1113.24,0.00019999,2]
[359629015,1746195047209,-1113.24,0.00019999,2]
[359629017,1746195047219,-1113.24,0.00019999,2]
[359629019,1746195047229,-1113.24,0.00019999,2]
[359629022,1746195047239,-1113.24,0.00019999,2]
[359629024,1746195047248,-1113.24,0.00019999,2]
[359629026,1746195047258,-1113.24,0.00019999,2]
[359629028,1746195047268,-1113.24,0.00019999,2]
[359629030,1746195047278,-1113.24,0.00019999,2]
[359629032,1746195047288,-1113.24,0.00019999,2]
[359629055,1746195047297,-1113.24,0.00019999,2]
[359629057,1746195047507,-1113.24,0.00019999,2]
[359629059,1746195047516,-1113.24,0.00019999,2]
[359629061,1746195047526,-1113.41570618,0.00019999,2]
[359629063,1746195047535,-981.0,0.00019999,2]
[359629065,1746195047544,-692.25841914,0.0002,2]
[359629067,1746195047554,-506316.98814539,0.0002,2]
[359629069,1746195047563,-34594.87573933,0.0002,2]
[359629071,1746195047572,-1081924.18149693,0.0002,2]
[359629073,1746195047582,-3950.0,0.0002,2]
[359629075,1746195047591,-1252.18185823,0.0002,2]
[359629077,1746195047600,-11846.75954341,0.0002,2]
[359629079,1746195047609,-1010.35543281,0.0002,2]
[359629081,1746195047619,-1762.8695288,0.0002,2]
[359629083,1746195047628,-88973.10531121,0.0002,2]
[359629085,1746195047638,-630767.13397997,0.0002,2]
[359629087,1746195047647,-250.0,0.0002,2]
[359629088,1746195047656,-250.0,0.0002,2]
[359629089,1746195047665,-250.0,0.0002,2]
[359629090,1746195047674,-250.0,0.0002,2]
[359629091,1746195047683,-250.0,0.0002,2]
[359629092,1746195047693,-250.0,0.0002,2]
[359629093,1746195047702,-250.0,0.0002,2]
[359629094,1746195047711,-250.0,0.0002,2]
[359629095,1746195047720,-250.0,0.0002,2]
[359629096,1746195047729,-250.0,0.0002,2]
[359629097,1746195047740,-367.2,0.0002,2]
[359629098,1746195047750,-93185.10217758,0.0002,2]
[359629099,1746195047760,-500.0,0.0002,2]
[359629100,1746195047769,-1687.5,0.0002,2]
[359629101,1746195047779,-1113270.13108093,0.0002,2]
[359629102,1746195049314,-1000.0,0.00019671,2]
[359629103,1746195049324,-589.98642904,0.000199,2]
[359629104,1746195049334,-451.39,0.000199,2]
[359629105,1746195049343,-1369.67959494,0.000199,2]
[359629106,1746195049353,-1135.0,0.00019912,2]
[359629107,1746195049363,-372424.82028013,0.0002,2]
[359629108,1746195049374,-8793.19773152,0.0002,2]
[359629109,1746195080409,995.49,0.00016906,2]
[359629110,1746195080759,995.49,0.0001917,2]
[359629111,1746195121077,158.3,0.00016712,2]
[359629115,1746195205123,1000.0,0.00018769,2]
[359629116,1746195219261,330.0,0.00030137,120]
[359629117,1746195479435,200.0,0.0001876,2]
[359629118,1746195489451,207.05,0.00018765,2]
[359629119,1746195571826,200.0,1e-08,2]
[359629120,1746195623628,154.92,0.00018763,2]
[359629121,1746195624009,5008.01,0.00018762,2]
[359629122,1746195652047,1985.12,0.00018763,2]
[359629123,1746195652810,-170.7393119,0.00019412,2]
[359629124,1746195652834,-63.31736573,0.00019419,2]
[359629125,1746195681563,234.07,0.00018753,2]
[359629126,1746195754045,1385.68,0.00018763,2]
[359629128,1746195779938,641.82,0.00018811,2]
[359629129,1746195878461,250.0,0.00017,2]
[359629130,1746195879545,250.0,0.00019,2]
[359629131,1746195879570,50.0,0.00019,2]
[359629132,1746195900768,226.3,0.00018765,2]
[359629133,1746195932182,250.0,0.00018767,2]
[359629134,1746195952492,250.0,0.00018775,7]
[359629135,1746195986475,15981.91,0.00018777,2]
[359629136,1746196015635,293.0,0.00018795,2]
[359629137,1746196128938,4000.0,0.00018757,2]
[359629138,1746196136590,500.0,0.000328,60]
[359629139,1746196151516,500.0,0.000328,60]
[359629140,1746196152207,268.0,0.0001833,2]
[359629143,1746196160910,500.0,0.000328,60]
[359629144,1746196166385,158.3,0.00016712,2]
[359629145,1746196168783,500.0,0.000328,60]
[359629146,1746196170265,949.99,0.00016838,2]
[359629147,1746196170453,949.99,0.00019102,2]
[359629148,1746196189551,1688.47,0.0003287,60]
[359629159,1746196232417,-184.04,0.00019426,2]
[359629160,1746196232426,-200.0,0.00019448,2]
[359629161,1746196232436,-176.51281847,0.0001947,2]
[359629162,1746196232446,-459.44718153,0.00019471,2]
[359629163,1746196232457,-948.47487812,0.00019471,2]
[359629164,1746196232482,-235.47602544,0.00019471,2]
[359629165,1746196232492,-264.30589571,0.00019471,2]
[359629509,1746196238302,-90.38930429,0.00019471,2]
[359629510,1746196238311,-1643.39808509,0.00019621,2]
[359629511,1746196238322,-1200.0,0.00019669,2]
[359629512,1746196238331,-300.0,0.00019669,2]
[359629513,1746196238341,-2995.09358922,0.0001967,2]
[359629514,1746196238351,-177.05047637,0.0001967,2]
[359629515,1746196238361,-183.35052335,0.0001967,2]
[359629516,1746196238372,-2500.0,0.0001967,2]
[359629517,1746196238382,-196.66214302,0.00019671,2]
[359629518,1746196238392,-250.0,0.00019672,2]
[359629519,1746196238402,-1488.07243983,0.0001968,2]
[359629520,1746196238412,-2995.09358922,0.00019696,2]
[359629521,1746196238422,-1000.0,0.000197,2]
[359629522,1746196238432,-2995.09358922,0.00019721,2]
[359629523,1746196238442,-150.0,0.00019733,2]
[359629524,1746196238452,-150.0,0.00019746,2]
[359629525,1746196238462,-2995.09358922,0.00019747,2]
[359629526,1746196238472,-183.35052335,0.00019747,2]
[359629527,1746196238482,-150.0,0.00019747,2]
[359629528,1746196238491,-500.0,0.00019748,2]
[359629529,1746196238501,-132.78261474,0.00019748,2]
[359629530,1746196238513,-367.21738526,0.00019748,2]
[359629531,1746196238523,-500.0,0.00019748,2]
[359629532,1746196238532,-70.20135342,0.00019748,2]
[359629533,1746196238554,-429.79864658,0.00019748,2]
[359629534,1746196238563,-500.0,0.00019748,2]
[359629535,1746196238572,-500.0,0.00019748,2]
[359629536,1746196238581,-193.53001337,0.00019748,2]
[359629537,1746196238592,-500.0,0.00019748,2]
[359629538,1746196238602,-500.0,0.00019748,2]
[359629539,1746196238612,-500.0,0.00019748,2]
[359629540,1746196238621,-500.0,0.00019748,2]
[359629541,1746196238632,-500.0,0.00019748,2]
[359629542,1746196238641,-500.0,0.00019748,2]
[359629543,1746196238651,-500.0,0.00019748,2]
[359629544,1746196238660,-500.0,0.00019748,2]
[359629545,1746196238669,-500.0,0.00019748,2]
[359629546,1746196238679,-500.0,0.00019748,2]
[359629547,1746196238688,-500.0,0.00019748,2]
[359629548,1746196238697,-500.0,0.00019748,2]
[359629549,1746196238707,-500.0,0.00019748,2]
[359629550,1746196238716,-500.0,0.00019748,2]
[359629551,1746196238726,-500.0,0.00019748,2]
[359629552,1746196238735,-500.0,0.00019748,2]
[359629553,1746196238745,-500.0,0.00019748,2]
[359629554,1746196238755,-500.0,0.00019748,2]
[359629555,1746196238764,-500.0,0.00019748,2]
[359629558,1746196238773,-500.0,0.00019748,2]
[359629560,1746196238782,-500.0,0.00019748,2]
[359629563,1746196238792,-500.0,0.00019748,2]
[359629566,1746196238802,-500.0,0.00019748,2]
[359629568,1746196238815,-500.0,0.00019748,2]
[359629570,1746196238824,-500.0,0.00019748,2]
[359629571,1746196238834,-500.0,0.00019748,2]
[359629572,1746196238844,-500.0,0.00019748,2]
[359629573,1746196238853,-500.0,0.00019748,2]
[359629574,1746196238863,-500.0,0.00019748,2]
[359629575,1746196238872,-500.0,0.00019748,2]
[359629577,1746196238882,-500.0,0.00019748,2]
[359629578,1746196238891,-500.0,0.00019748,2]
[359629579,1746196238900,-1000.0,0.00019749,2]
[359629580,1746196238910,-4786.36416238,0.0001975,2]
[359629583,1746196240493,-24568.83290539,0.0001975,2]
[359629584,1746196240503,-500.0,0.00019753,2]
[359629585,1746196240512,-268.0,0.0001976,2]
[359629586,1746196240523,-1555.766,0.00019767,2]
[359629587,1746196240534,-165.8,0.00019767,2]
[359629588,1746196240544,-500.0,0.00019769,2]
[359629589,1746196240553,-210.95469706,0.00019769,2]
[359629590,1746196240563,-450.0,0.00019769,2]
[359629591,1746196240574,-450.0,0.00019769,2]
[359629592,1746196240583,-914.280902,0.00019769,2]
[359629593,1746196240593,-671.954655,0.00019769,2]
[359629594,1746196240603,-3020.79,0.00019769,2]
[359629595,1746196240612,-450.0,0.00019769,2]
[359629596,1746196240622,-1338.7,0.00019769,2]
[359629597,1746196240631,-450.0,0.00019769,2]
[359629598,1746196240641,-450.0,0.00019769,2]
[359629599,1746196240651,-450.0,0.00019769,2]
[359629600,1746196240661,-495.77391401,0.00019769,2]
[359629601,1746196240670,-450.0,0.00019769,2]
[359629602,1746196240681,-450.0,0.00019769,2]
[359629603,1746196240690,-380.30240514,0.00019769,2]
[359629604,1746196240701,-450.0,0.00019769,2]
[359629605,1746196240719,-450.0,0.00019769,2]
[359629606,1746196240729,-450.0,0.00019769,2]
[359629607,1746196240739,-450.0,0.00019769,2]
[359629608,1746196240748,-12549.2,0.00019769,2]
[359629609,1746196240758,-758.26,0.00019769,2]
[359629610,1746196240768,-450.0,0.00019769,2]
[359629611,1746196240778,-606.58,0.00019769,2]
[359629612,1746196240788,-450.0,0.00019769,2]
[359629613,1746196240798,-469.31,0.00019769,2]
[359629614,1746196240808,-492.18,0.00019769,2]
[359629615,1746196240818,-619.57,0.00019769,2]
[359629616,1746196240828,-898.8,0.00019769,2]
[359629617,1746196240837,-784.02,0.00019769,2]
[359629618,1746196240848,-450.0,0.00019769,2]
[359629619,1746196240857,-509.16,0.00019769,2]
[359629620,1746196240867,-474.34,0.00019769,2]
[359629621,1746196240877,-450.0,0.00019769,2]
[359629622,1746196240886,-778.8,0.00019769,2]
[359629623,1746196240895,-450.0,0.00019769,2]
[359629624,1746196240905,-450.0,0.00019769,2]
[359629625,1746196240914,-450.0,0.00019769,2]
[359629626,1746196240924,-680.1,0.00019769,2]
[359629627,1746196240933,-450.0,0.00019769,2]
[359629628,1746196240944,-810.7,0.00019769,2]
[359629629,1746196240953,-450.0,0.00019769,2]
[359629630,1746196240963,-1682.3,0.00019769,2]
[359629631,1746196240972,-8198.16,0.00019769,2]
[359629632,1746196240982,-450.0,0.00019769,2]
[359629633,1746196240991,-450.0,0.00019769,2]
[359629634,1746196241000,-450.0,0.00019769,2]
[359629635,1746196241009,-188.79780391,0.00019769,2]
[359629636,1746196241019,-450.0,0.00019769,2]
[359629637,1746196241028,-494.43,0.00019769,2]
[359629638,1746196241038,-450.0,0.00019769,2]
[359629639,1746196241047,-450.0,0.00019769,2]
[359629640,1746196241056,-483.51,0.00019769,2]
[359629641,1746196241066,-1923.6,0.00019769,2]
[359629642,1746196241075,-450.0,0.00019769,2]
[359629643,1746196241089,-590.44,0.00019769,2]
[359629644,1746196241099,-450.0,0.00019769,2]
[359629645,1746196241109,-450.0,0.00019769,2]
[359629646,1746196241118,-568.08,0.00019769,2]
[359629647,1746196241129,-450.0,0.00019769,2]
[359629648,1746196241139,-450.0,0.00019769,2]
[359629649,1746196241148,-743.23,0.00019769,2]
[359629650,1746196241157,-450.0,0.00019769,2]
[359629651,1746196241168,-450.0,0.00019769,2]
[359629652,1746196241177,-450.0,0.0001977,2]
[359629653,1746196241187,-500.66,0.0001977,2]
[359629655,1746196241196,-468.41,0.0001977,2]
[359629657,1746196241206,-450.0,0.0001977,2]
[359629659,1746196241215,-450.0,0.0001977,2]
[359629661,1746196241224,-450.0,0.0001977,2]
[359629662,1746196241233,-415.47896754,0.0001977,2]
[359629663,1746196241243,-250.0,0.0001977,2]
[359629664,1746196241252,-450.0,0.0001977,2]
[359629665,1746196241262,-450.0,0.0001977,2]
[359629666,1746196241271,-450.0,0.0001977,2]
[359629667,1746196241281,-450.0,0.0001977,2]
[359629668,1746196241290,-484.39,0.0001977,2]
[359629669,1746196241299,-627.34,0.0001977,2]
[359629670,1746196241308,-500.0,0.0001977,2]
[359629671,1746196241317,-500.0,0.0001977,2]
[359629672,1746196241329,-450.0,0.0001977,2]
[359629673,1746196241339,-450.0,0.0001977,2]
[359629674,1746196241348,-450.0,0.0001977,2]
[359629675,1746196241358,-479.6,0.0001977,2]
[359629676,1746196241368,-450.0,0.0001977,2]
[359629677,1746196241378,-450.0,0.0001977,2]
[359629678,1746196241387,-450.0,0.0001977,2]
[359629679,1746196241397,-450.0,0.0001977,2]
[359629680,1746196241407,-450.0,0.0001977,2]
[359629681,1746196241416,-450.0,0.0001977,2]
[359629682,1746196241426,-450.0,0.0001977,2]
[359629683,1746196241435,-655.39,0.0001977,2]
[359629684,1746196241444,-450.0,0.0001977,2]
[359629685,1746196241454,-450.0,0.0001977,2]
[359629686,1746196241463,-450.0,0.0001977,2]
[359629687,1746196241473,-450.0,0.0001977,2]
[359629688,1746196241483,-490.12,0.0001977,2]
[359629689,1746196241492,-542.06,0.0001977,2]
[359629690,1746196241501,-450.0,0.0001977,2]
[359629691,1746196241511,-450.0,0.0001977,2]
[359629692,1746196241520,-450.0,0.0001977,2]
[359629693,1746196241530,-450.0,0.0001977,2]
[359629694,1746196241540,-450.0,0.0001977,2]
[359629695,1746196241549,-613.7,0.0001977,2]
[359629696,1746196241559,-450.0,0.0001977,2]
[359629697,1746196241568,-474.89,0.0001977,2]
[359629698,1746196241577,-490.96,0.0001977,2]
[359629699,1746196241587,-530.03,0.0001977,2]
[359629700,1746196241596,-450.0,0.0001977,2]
[359629701,1746196241605,-485.42,0.0001977,2]
[359629702,1746196241614,-450.0,0.0001977,2]
[359629703,1746196241623,-450.0,0.0001977,2]
[359629704,1746196241633,-986.25,0.0001977,2]
[359629705,1746196241642,-450.0,0.0001977,2]
[359629706,1746196241652,-450.0,0.0001977,2]
[359629707,1746196241661,-450.0,0.0001977,2]
[359629708,1746196241670,-450.0,0.0001977,2]
[359629709,1746196241679,-450.0,0.0001977,2]
[359629710,1746196241688,-450.0,0.0001977,2]
[359629711,1746196241698,-450.0,0.0001977,2]
[359629712,1746196241707,-452.55,0.0001977,2]
[359629713,1746196241716,-450.0,0.0001977,2]
[359629714,1746196241725,-450.0,0.0001977,2]
[359629715,1746196241735,-333.10100663,0.0001977,2]
[359629716,1746196241743,-450.0,0.0001977,2]
[359629717,1746196241753,-450.0,0.0001977,2]
[359629718,1746196241763,-450.0,0.0001977,2]
[359629719,1746196241773,-450.0,0.0001977,2]
[359629720,1746196241782,-450.0,0.0001977,2]
[359629721,1746196241791,-488.32,0.0001977,2]
[359629722,1746196241800,-740.51,0.0001977,2]
[359629723,1746196241810,-463.61,0.0001977,2]
[359629724,1746196241820,-450.0,0.0001977,2]
[359629725,1746196241829,-450.0,0.0001977,2]
[359629726,1746196241840,-451.56,0.0001977,2]
[359629727,1746196241850,-450.0,0.0001977,2]
[359629728,1746196241859,-450.0,0.0001977,2]
[359629729,1746196241868,-450.0,0.0001977,2]
[359629730,1746196241878,-450.0,0.0001977,2]
[359629731,1746196241889,-450.0,0.0001977,2]
[359629732,1746196241898,-450.0,0.0001977,2]
[359629733,1746196241907,-450.0,0.0001977,2]
[359629734,1746196241918,-1428.23,0.0001977,2]
[359629735,1746196241927,-450.0,0.0001977,2]
[359629736,1746196241937,-486.12,0.0001977,2]
[359629737,1746196241946,-450.0,0.0001977,2]
[359629738,1746196241956,-450.0,0.0001977,2]
[359629739,1746196241966,-450.0,0.0001977,2]
[359629740,1746196241976,-450.0,0.0001977,2]
[359629741,1746196241986,-450.0,0.0001977,2]
[359629742,1746196241998,-450.0,0.0001977,2]
[359629743,1746196242009,-450.0,0.0001977,2]
[359629744,1746196242019,-460.57,0.0001977,2]
[359629745,1746196242028,-672.07,0.0001977,2]
[359629746,1746196242037,-450.0,0.0001977,2]
[359629747,1746196242047,-450.0,0.0001977,2]
[359629748,1746196242056,-450.0,0.0001977,2]
[359629749,1746196242065,-1177.18,0.0001977,2]
[359629750,1746196242074,-450.0,0.0001977,2]
[359629751,1746196242088,-671.54,0.0001977,2]
[359629752,1746196242098,-939.95,0.0001977,2]
[359629753,1746196242107,-815.81,0.0001977,2]
[359629754,1746196242116,-450.0,0.0001977,2]
[359629755,1746196242127,-450.0,0.0001977,2]
[359629756,1746196242137,-545.45,0.0001977,2]
[359629757,1746196242146,-450.0,0.0001977,2]
[359629758,1746196242157,-450.0,0.0001977,2]
[359629759,1746196242166,-450.0,0.0001977,2]
[359629760,1746196242175,-696.42,0.0001977,2]
[359629761,1746196242185,-694.49,0.0001977,2]
[359629762,1746196242194,-450.0,0.0001977,2]
[359629763,1746196242204,-531.58,0.0001977,2]
[359629764,1746196242213,-450.0,0.0001977,2]
[359629765,1746196242222,-706.15,0.0001977,2]
[359629766,1746196242231,-450.0,0.0001977,2]
[359629767,1746196242242,-450.0,0.0001977,2]
[359629768,1746196242251,-450.0,0.0001977,2]
[359629769,1746196242260,-450.0,0.0001977,2]
[359629770,1746196242270,-450.0,0.0001977,2]
[359629771,1746196242280,-450.0,0.0001977,2]
[359629772,1746196242292,-450.0,0.0001977,2]
[359629773,1746196242302,-450.0,0.0001977,2]
[359629774,1746196242311,-450.0,0.0001977,2]
[359629775,1746196242320,-448.12202068,0.0001977,2]
[359629776,1746196242330,-450.0,0.0001977,2]
[359629777,1746196242339,-450.0,0.0001977,2]
[359629778,1746196242353,-450.0,0.0001977,2]
[359629779,1746196242363,-450.0,0.0001977,2]
[359629780,1746196242372,-720.72,0.0001977,2]
[359629781,1746196242382,-641.34,0.0001977,2]
[359629782,1746196242392,-450.0,0.0001977,2]
[359629783,1746196242402,-450.0,0.0001977,2]
[359629784,1746196242412,-450.0,0.0001977,2]
[359629785,1746196242422,-450.0,0.0001977,2]
[359629786,1746196242431,-450.0,0.0001977,2]
[359629787,1746196242440,-450.0,0.0001977,2]
[359629788,1746196242450,-469.73,0.0001977,2]
[359629789,1746196242459,-450.0,0.0001977,2]
[359629790,1746196242468,-532.67,0.0001977,2]
[359629791,1746196242477,-707.74,0.0001977,2]
[359629792,1746196242487,-450.0,0.0001977,2]
[359629793,1746196242496,-450.0,0.0001977,2]
[359629794,1746196242505,-450.0,0.0001977,2]
[359629795,1746196242514,-524.11,0.0001977,2]
[359629796,1746196242524,-450.0,0.0001977,2]
[359629797,1746196242533,-450.0,0.0001977,2]
[359629798,1746196242543,-450.0,0.0001977,2]
[359629799,1746196242552,-654.21,0.0001977,2]
[359629800,1746196242561,-450.0,0.0001977,2]
[359629801,1746196242571,-450.0,0.0001977,2]
[359629802,1746196242581,-450.0,0.0001977,2]
[359629803,1746196242590,-559.16,0.0001977,2]
[359629804,1746196242599,-450.0,0.0001977,2]
[359629805,1746196242609,-450.0,0.0001977,2]
[359629806,1746196242618,-450.0,0.0001977,2]
[359629807,1746196242628,-528.09,0.0001977,2]
[359629808,1746196242637,-450.0,0.0001977,2]
[359629809,1746196242647,-465.13,0.0001977,2]
[359629810,1746196242656,-450.0,0.0001977,2]
[359629811,1746196242665,-1411.88,0.0001977,2]
[359629812,1746196242674,-450.0,0.0001977,2]
[359629813,1746196242684,-642.81,0.0001977,2]
[359629814,1746196242693,-895.0,0.0001977,2]
[359629815,1746196242702,-450.0,0.0001977,2]
[359629816,1746196242712,-450.0,0.0001977,2]
[359629817,1746196242721,-450.0,0.0001977,2]
[359629818,1746196242730,-1709.15,0.0001977,2]
[359629819,1746196242739,-450.0,0.0001977,2]
[359629820,1746196242748,-730.24,0.0001977,2]
[359629821,1746196242758,-450.0,0.0001977,2]
[359629822,1746196242767,-318.76601085,0.0001977,2]
[359629823,1746196242776,-450.0,0.0001977,2]
[359629824,1746196242786,-450.0,0.0001977,2]
[359629825,1746196242795,-450.0,0.0001977,2]
[359629826,1746196242804,-450.0,0.0001977,2]
[359629827,1746196242813,-450.0,0.0001977,2]
[359629828,1746196242822,-832.44,0.0001977,2]
[359629829,1746196242832,-450.0,0.0001977,2]
[359629830,1746196242842,-450.0,0.0001977,2]
[359629831,1746196242851,-450.0,0.0001977,2]
[359629832,1746196242860,-450.0,0.0001977,2]
[359629833,1746196242870,-450.0,0.0001977,2]
[359629834,1746196242879,-450.0,0.0001977,2]
[359629835,1746196242890,-450.0,0.0001977,2]
[359629836,1746196242899,-517.51,0.0001977,2]
[359629837,1746196242910,-4521.11,0.0001977,2]
[359629838,1746196242920,-450.0,0.0001977,2]
[359629839,1746196242930,-450.0,0.0001977,2]
[359629840,1746196242940,-450.0,0.0001977,2]
[359629841,1746196242950,-450.0,0.0001977,2]
[359629842,1746196242959,-513.58,0.0001977,2]
[359629843,1746196242969,-591.21,0.0001977,2]
[359629844,1746196242978,-450.0,0.0001977,2]
[359629845,1746196242989,-450.0,0.0001977,2]
[359629846,1746196242999,-837.18,0.0001977,2]
[359629847,1746196243009,-749.92,0.0001977,2]
[359629848,1746196243019,-564.62,0.0001977,2]
[359629849,1746196243029,-2356.38,0.0001977,2]
[359629850,1746196243039,-467.7,0.0001977,2]
[359629851,1746196243048,-839.14,0.0001977,2]
[359629852,1746196243058,-1565.3,0.0001977,2]